[Event "Early-Titled-Tuesday-Blitz-November-28-2023"]
[Site "Chess.com"]
[Date "2023.11.28"]
[Round "1"]
[White "GothamChess"]
[Black "Eloist"]
[Result "1-0"]
[WhiteElo "2698"]
[BlackElo "2394"]
[TimeControl "180+1"]
[EndTime "8:06:19 PST"]
[Termination "GothamChess won on time"]

1. d4 {[%clk 0:03:00.9]} 1... e6 {[%clk 0:02:58.7]} 2. Bf4 {[%clk 0:02:53.5]}
2... Nf6 {[%clk 0:02:56.9]} 3. Nc3 {[%clk 0:02:52.3]} 3... d5 {[%clk 0:02:56]}
4. Nb5 {[%clk 0:02:51.3]} 4... Na6 {[%clk 0:02:54.5]} 5. e3 {[%clk 0:02:49.7]}
5... c6 {[%clk 0:02:53.2]} 6. Nc3 {[%clk 0:02:49.7]} 6... Bb4 {[%clk 0:02:53]}
7. Ne2 {[%clk 0:02:46.9]} 7... O-O {[%clk 0:02:50.8]} 8. g4 {[%clk 0:02:43.4]}
8... Re8 {[%clk 0:02:39.6]} 9. a3 {[%clk 0:02:25.9]} 9... Bd6 {[%clk 0:02:37.8]}
10. Bxd6 {[%clk 0:02:18.5]} 10... Qxd6 {[%clk 0:02:37.3]} 11. g5 {[%clk
0:02:19.3]} 11... Ne4 {[%clk 0:02:31.7]} 12. Nxe4 {[%clk 0:02:17]} 12... dxe4
{[%clk 0:02:31.3]} 13. Ng3 {[%clk 0:02:16]} 13... e5 {[%clk 0:02:09.9]} 14. Bg2
{[%clk 0:02:02.3]} 14... exd4 {[%clk 0:02:05.1]} 15. Qxd4 {[%clk 0:02:02.2]}
15... Qxd4 {[%clk 0:01:58.3]} 16. exd4 {[%clk 0:02:03.1]} 16... e3 {[%clk
0:01:53.6]} 17. f4 {[%clk 0:02:02.4]} 17... Nc7 {[%clk 0:01:47.2]} 18. O-O-O
{[%clk 0:01:58]} 18... Bg4 {[%clk 0:01:38.3]} 19. Rd3 {[%clk 0:01:47.4]} 19...
Nd5 {[%clk 0:01:15.8]} 20. Bxd5 {[%clk 0:01:39.7]} 20... cxd5 {[%clk 0:01:15.8]}
21. h3 {[%clk 0:01:35.3]} 21... Bd7 {[%clk 0:00:57.4]} 22. Re1 {[%clk
0:01:31.5]} 22... Bxh3 {[%clk 0:00:53]} 23. Rdxe3 {[%clk 0:01:31.5]} 23... Kf8
{[%clk 0:00:41.3]} 24. Re5 {[%clk 0:01:29.8]} 24... f6 {[%clk 0:00:31.7]} 25.
gxf6 {[%clk 0:01:22.2]} 25... gxf6 {[%clk 0:00:31.6]} 26. Rxe8+ {[%clk
0:01:22.8]} 26... Rxe8 {[%clk 0:00:31.6]} 27. Rh1 {[%clk 0:01:23.6]} 27... Bg4
{[%clk 0:00:21.3]} 28. Rxh7 {[%clk 0:01:20.7]} 28... Re3 {[%clk 0:00:19.9]} 29.
Nh5 {[%clk 0:01:14.2]} 29... Re1+ {[%clk 0:00:09.5]} 30. Kd2 {[%clk 0:01:14.1]}
30... Rd1+ {[%clk 0:00:09.5]} 31. Kc3 {[%clk 0:01:14]} 31... Bxh5 {[%clk
0:00:06.9]} 32. Rxh5 {[%clk 0:01:13.8]} 32... Rf1 {[%clk 0:00:06.4]} 33. Rxd5
{[%clk 0:01:11.2]} 33... Rxf4 {[%clk 0:00:05.7]} 34. Rd7 {[%clk 0:01:11.8]}
34... a5 {[%clk 0:00:01.6]} 35. Rxb7 {[%clk 0:01:11.5]} 35... Rf3+ {[%clk
0:00:01.2]} 36. Kc4 {[%clk 0:01:09.6]} 36... f5 {[%clk 0:00:01.7]} 37. Rb5
{[%clk 0:01:10]} 1-0

[Event "Early-Titled-Tuesday-Blitz-November-28-2023"]
[Site "Chess.com"]
[Date "2023.11.28"]
[Round "1"]
[White "Kovalyov_Eduard"]
[Black "kuli4ik"]
[Result "0-1"]
[WhiteElo "2477"]
[BlackElo "2859"]
[TimeControl "180+1"]
[EndTime "8:06:23 PST"]
[Termination "kuli4ik won on time"]

1. d4 {[%clk 0:02:52.5]} 1... g6 {[%clk 0:02:57.3]} 2. e4 {[%clk 0:02:49.6]}
2... Bg7 {[%clk 0:02:57.6]} 3. Nc3 {[%clk 0:02:42.8]} 3... a6 {[%clk 0:02:57]}
4. Nf3 {[%clk 0:02:39.3]} 4... d6 {[%clk 0:02:56.1]} 5. Be2 {[%clk 0:02:32.8]}
5... Nf6 {[%clk 0:02:50.6]} 6. O-O {[%clk 0:02:25.5]} 6... O-O {[%clk
0:02:49.5]} 7. Re1 {[%clk 0:02:23.8]} 7... Nc6 {[%clk 0:02:48.5]} 8. d5 {[%clk
0:02:19.2]} 8... Na7 {[%clk 0:02:45.4]} 9. a4 {[%clk 0:02:18]} 9... Bd7 {[%clk
0:02:37.9]} 10. Bc4 {[%clk 0:02:15.1]} 10... Bg4 {[%clk 0:02:35.8]} 11. h3
{[%clk 0:02:13.7]} 11... Bxf3 {[%clk 0:02:35.4]} 12. Qxf3 {[%clk 0:02:12.6]}
12... Nd7 {[%clk 0:02:36.3]} 13. Qe2 {[%clk 0:02:09.8]} 13... a5 {[%clk
0:02:27.3]} 14. Bg5 {[%clk 0:02:01.6]} 14... Nc8 {[%clk 0:02:26.6]} 15. Bb3
{[%clk 0:02:00.7]} 15... Ncb6 {[%clk 0:02:25.1]} 16. f4 {[%clk 0:01:50.4]} 16...
c6 {[%clk 0:02:19.4]} 17. dxc6 {[%clk 0:01:42.9]} 17... bxc6 {[%clk 0:02:18.5]}
18. Rad1 {[%clk 0:01:43.5]} 18... Nc5 {[%clk 0:02:13.4]} 19. e5 {[%clk
0:01:40.4]} 19... d5 {[%clk 0:02:10.1]} 20. Qf2 {[%clk 0:01:29.1]} 20... Nbd7
{[%clk 0:01:59.5]} 21. Ba2 {[%clk 0:00:34.7]} 21... Rb8 {[%clk 0:01:54.1]} 22.
Rb1 {[%clk 0:00:31.9]} 22... Re8 {[%clk 0:01:52.8]} 23. Kh1 {[%clk 0:00:24.1]}
23... Qb6 {[%clk 0:01:52.1]} 24. Qd2 {[%clk 0:00:19.6]} 24... Qb4 {[%clk
0:01:46.9]} 25. Red1 {[%clk 0:00:14.5]} 25... Ne6 {[%clk 0:01:45.5]} 26. Bh4
{[%clk 0:00:11]} 26... Qxf4 {[%clk 0:01:44.6]} 27. Qxf4 {[%clk 0:00:08.9]} 27...
Nxf4 {[%clk 0:01:45.5]} 28. Bg3 {[%clk 0:00:08]} 28... Bxe5 {[%clk 0:01:43.3]}
29. Re1 {[%clk 0:00:06.1]} 29... Bd6 {[%clk 0:01:43.1]} 30. Bb3 {[%clk
0:00:04.8]} 30... Nc5 {[%clk 0:01:37.8]} 31. Rbd1 {[%clk 0:00:03.7]} 31... Nxb3
{[%clk 0:01:36.7]} 32. cxb3 {[%clk 0:00:04.6]} 32... Rxb3 {[%clk 0:01:37]} 33.
Rd2 {[%clk 0:00:03.2]} 33... Reb8 {[%clk 0:01:36.7]} 34. Rf1 {[%clk 0:00:02.6]}
34... e5 {[%clk 0:01:34.9]} 35. Rff2 {[%clk 0:00:02.8]} 35... f5 {[%clk
0:01:27.5]} 36. Bh4 {[%clk 0:00:02.6]} 36... Ne6 {[%clk 0:01:25.1]} 37. Bf6
{[%clk 0:00:02.6]} 37... e4 {[%clk 0:01:24.9]} 38. Ne2 {[%clk 0:00:02]} 38... e3
{[%clk 0:01:24.4]} 0-1

[Event "Early-Titled-Tuesday-Blitz-November-28-2023"]
[Site "Chess.com"]
[Date "2023.11.28"]
[Round "1"]
[White "K_A_S_T_O_R"]
[Black "DeArron_Fox"]
[Result "1-0"]
[WhiteElo "2849"]
[BlackElo "2468"]
[TimeControl "180+1"]
[EndTime "8:06:24 PST"]
[Termination "K_A_S_T_O_R won by resignation"]

1. e4 {[%clk 0:03:00.9]} 1... c5 {[%clk 0:02:54.3]} 2. Nf3 {[%clk 0:03:01]} 2...
e6 {[%clk 0:02:53.1]} 3. d4 {[%clk 0:03:00.9]} 3... cxd4 {[%clk 0:02:54]} 4.
Nxd4 {[%clk 0:03:01.4]} 4... a6 {[%clk 0:02:51.8]} 5. Bd3 {[%clk 0:03:01]} 5...
Bc5 {[%clk 0:02:49]} 6. Nb3 {[%clk 0:03:00.7]} 6... Ba7 {[%clk 0:02:47.4]} 7.
O-O {[%clk 0:02:58.6]} 7... Ne7 {[%clk 0:02:47.6]} 8. Qe2 {[%clk 0:02:58.8]}
8... O-O {[%clk 0:02:46.4]} 9. Be3 {[%clk 0:02:58.8]} 9... Bxe3 {[%clk 0:02:47]}
10. Qxe3 {[%clk 0:02:58.8]} 10... Nbc6 {[%clk 0:02:47.7]} 11. c4 {[%clk
0:02:54.8]} 11... d5 {[%clk 0:02:47.6]} 12. cxd5 {[%clk 0:02:45.2]} 12... exd5
{[%clk 0:02:48.5]} 13. e5 {[%clk 0:02:45]} 13... Bf5 {[%clk 0:01:54.3]} 14. Re1
{[%clk 0:02:39.6]} 14... Bxd3 {[%clk 0:01:47.4]} 15. Qxd3 {[%clk 0:02:38.4]}
15... Ng6 {[%clk 0:01:47.4]} 16. Qg3 {[%clk 0:02:14.8]} 16... Ngxe5 {[%clk
0:00:47.3]} 17. Rxe5 {[%clk 0:01:59.4]} 17... Nxe5 {[%clk 0:00:48.2]} 18. Qxe5
{[%clk 0:01:59.9]} 18... Re8 {[%clk 0:00:48.8]} 19. Qc3 {[%clk 0:01:58.7]} 19...
Rc8 {[%clk 0:00:49.1]} 20. Qd2 {[%clk 0:01:57.2]} 20... Rc2 {[%clk 0:00:48.2]}
21. Qd1 {[%clk 0:01:49.3]} 21... Qf6 {[%clk 0:00:18]} 22. N1d2 {[%clk
0:01:47.2]} 22... Qxb2 {[%clk 0:00:17.8]} 23. Nf3 {[%clk 0:01:39]} 23... Rxf2
{[%clk 0:00:14.9]} 24. Nbd2 {[%clk 0:01:36.7]} 24... Ree2 {[%clk 0:00:13.1]} 25.
Rc1 {[%clk 0:01:26.5]} 25... Rxg2+ {[%clk 0:00:11.5]} 26. Kh1 {[%clk 0:01:26.7]}
26... g6 {[%clk 0:00:07]} 27. Rc2 {[%clk 0:01:16.3]} 27... Qa3 {[%clk 0:00:03]}
28. Rc8+ {[%clk 0:01:04.5]} 28... Kg7 {[%clk 0:00:03.3]} 29. Qa1+ {[%clk
0:01:05.1]} 29... Kh6 {[%clk 0:00:03.6]} 30. Qd4 {[%clk 0:01:02.1]} 30... Qe3
{[%clk 0:00:02.9]} 31. Qxe3+ {[%clk 0:00:57.6]} 31... Rxe3 {[%clk 0:00:02.4]}
32. Kxg2 {[%clk 0:00:58]} 1-0

[Event "Early-Titled-Tuesday-Blitz-November-28-2023"]
[Site "Chess.com"]
[Date "2023.11.28"]
[Round "1"]
[White "LeoLV10"]
[Black "PattyCastillo"]
[Result "1-0"]
[WhiteElo "2533"]
[BlackElo "2012"]
[TimeControl "180+1"]
[EndTime "8:06:24 PST"]
[Termination "LeoLV10 won by checkmate"]

1. e4 {[%clk 0:03:00.9]} 1... c5 {[%clk 0:01:41.1]} 2. Nf3 {[%clk 0:02:59.8]}
2... d6 {[%clk 0:01:40.9]} 3. d4 {[%clk 0:03:00.4]} 3... cxd4 {[%clk 0:01:41.1]}
4. Nxd4 {[%clk 0:03:01.3]} 4... Nf6 {[%clk 0:01:41.8]} 5. Nc3 {[%clk 0:03:01.9]}
5... a6 {[%clk 0:01:42.2]} 6. Bg5 {[%clk 0:03:02.5]} 6... e6 {[%clk 0:01:42.4]}
7. f4 {[%clk 0:02:59.1]} 7... h6 {[%clk 0:01:42.3]} 8. Bh4 {[%clk 0:02:59.1]}
8... Qb6 {[%clk 0:01:42.7]} 9. a3 {[%clk 0:02:59.2]} 9... Be7 {[%clk 0:01:41.5]}
10. Bf2 {[%clk 0:02:59.3]} 10... Qc7 {[%clk 0:01:41.5]} 11. Be2 {[%clk
0:02:53.2]} 11... Nbd7 {[%clk 0:01:37.8]} 12. Bf3 {[%clk 0:02:52.6]} 12... Rb8
{[%clk 0:01:31.7]} 13. Qd2 {[%clk 0:02:36.8]} 13... b5 {[%clk 0:01:30.8]} 14. g4
{[%clk 0:02:33.6]} 14... Bb7 {[%clk 0:00:59.4]} 15. h4 {[%clk 0:02:19]} 15... d5
{[%clk 0:00:59.3]} 16. e5 {[%clk 0:02:19.3]} 16... Ne4 {[%clk 0:00:59]} 17. Bxe4
{[%clk 0:02:11.2]} 17... dxe4 {[%clk 0:00:59.9]} 18. Be3 {[%clk 0:02:11.8]}
18... Bc5 {[%clk 0:00:55.3]} 19. O-O-O {[%clk 0:02:05.1]} 19... Rd8 {[%clk
0:00:49.9]} 20. Rhe1 {[%clk 0:01:53.9]} 20... O-O {[%clk 0:00:48.3]} 21. h5
{[%clk 0:01:48.8]} 21... Nb6 {[%clk 0:00:44.9]} 22. Qf2 {[%clk 0:00:59.9]} 22...
Nc4 {[%clk 0:00:42.4]} 23. g5 {[%clk 0:00:53.8]} 23... Nxe3 {[%clk 0:00:40.9]}
24. Qxe3 {[%clk 0:00:54.6]} 24... Qb6 {[%clk 0:00:38.1]} 25. Nce2 {[%clk
0:00:53]} 25... b4 {[%clk 0:00:33.8]} 26. axb4 {[%clk 0:00:52]} 26... Bxb4
{[%clk 0:00:33]} 27. c3 {[%clk 0:00:52.5]} 27... Rc8 {[%clk 0:00:32]} 28. gxh6
{[%clk 0:00:52.2]} 28... gxh6 {[%clk 0:00:24.3]} 29. Rg1+ {[%clk 0:00:50.8]}
29... Kh7 {[%clk 0:00:22.1]} 30. Rg3 {[%clk 0:00:47]} 30... Rg8 {[%clk
0:00:18.1]} 31. Rdg1 {[%clk 0:00:47.4]} 31... Rxg3 {[%clk 0:00:17.9]} 32. Qxg3
{[%clk 0:00:48.3]} 32... Bf8 {[%clk 0:00:12.2]} 33. Qg8# {[%clk 0:00:48.1]} 1-0

[Event "Early-Titled-Tuesday-Blitz-November-28-2023"]
[Site "Chess.com"]
[Date "2023.11.28"]
[Round "1"]
[White "HanSchut"]
[Black "Leo_C"]
[Result "0-1"]
[WhiteElo "2306"]
[BlackElo "2621"]
[TimeControl "180+1"]
[EndTime "8:06:27 PST"]
[Termination "Leo_C won on time"]

1. e4 {[%clk 0:02:59.1]} 1... e5 {[%clk 0:02:58.6]} 2. Nf3 {[%clk 0:02:59]} 2...
Nc6 {[%clk 0:02:58.8]} 3. Bc4 {[%clk 0:02:59.6]} 3... Bc5 {[%clk 0:02:58.3]} 4.
c3 {[%clk 0:03:00.1]} 4... Nf6 {[%clk 0:02:58.8]} 5. d4 {[%clk 0:03:00.7]} 5...
exd4 {[%clk 0:02:59.2]} 6. b4 {[%clk 0:03:01.3]} 6... Be7 {[%clk 0:02:58]} 7. e5
{[%clk 0:02:59.1]} 7... Ne4 {[%clk 0:02:55.2]} 8. b5 {[%clk 0:02:51.9]} 8... Na5
{[%clk 0:02:52.5]} 9. Bd3 {[%clk 0:02:51.4]} 9... Nxc3 {[%clk 0:02:50.5]} 10.
Nxc3 {[%clk 0:02:51.8]} 10... dxc3 {[%clk 0:02:50.4]} 11. Qa4 {[%clk 0:02:51.9]}
11... b6 {[%clk 0:02:32.7]} 12. O-O {[%clk 0:02:51]} 12... Bb7 {[%clk
0:02:32.3]} 13. Qg4 {[%clk 0:02:45.1]} 13... g6 {[%clk 0:02:27.3]} 14. Bh6
{[%clk 0:02:39.4]} 14... c5 {[%clk 0:02:19.6]} 15. Rad1 {[%clk 0:02:34.5]} 15...
Qc7 {[%clk 0:02:17]} 16. Rfe1 {[%clk 0:02:03.6]} 16... O-O-O {[%clk 0:02:15.9]}
17. Ng5 {[%clk 0:02:03.6]} 17... Bd5 {[%clk 0:02:06.1]} 18. a4 {[%clk
0:01:54.5]} 18... f6 {[%clk 0:01:57.6]} 19. exf6 {[%clk 0:01:29.9]} 19... Bxf6
{[%clk 0:01:58.5]} 20. Be4 {[%clk 0:01:23.8]} 20... Bxe4 {[%clk 0:01:40.4]} 21.
Nxe4 {[%clk 0:01:15.5]} 21... Be5 {[%clk 0:01:39.9]} 22. f4 {[%clk 0:00:53.1]}
22... Bd4+ {[%clk 0:01:38.6]} 23. Kh1 {[%clk 0:00:53.8]} 23... Nc4 {[%clk
0:01:28.2]} 24. f5 {[%clk 0:00:38.1]} 24... gxf5 {[%clk 0:01:29.1]} 25. Qxf5
{[%clk 0:00:35.9]} 25... Be5 {[%clk 0:01:10.7]} 26. Qf7 {[%clk 0:00:12]} 26...
d5 {[%clk 0:01:03]} 27. Qf5+ {[%clk 0:00:09.3]} 27... Qd7 {[%clk 0:00:58]} 28.
Qxd7+ {[%clk 0:00:08.5]} 28... Rxd7 {[%clk 0:00:58]} 29. Ng5 {[%clk 0:00:08.8]}
29... d4 {[%clk 0:00:55.8]} 30. Nf3 {[%clk 0:00:05]} 30... Bc7 {[%clk
0:00:53.7]} 0-1

[Event "Early-Titled-Tuesday-Blitz-November-28-2023"]
[Site "Chess.com"]
[Date "2023.11.28"]
[Round "1"]
[White "Alexander_Donchenko"]
[Black "secretsuperstar7"]
[Result "1-0"]
[WhiteElo "2864"]
[BlackElo "2489"]
[TimeControl "180+1"]
[EndTime "8:06:28 PST"]
[Termination "Alexander_Donchenko won by resignation"]

1. d4 {[%clk 0:02:59.3]} 1... Nf6 {[%clk 0:02:57]} 2. c4 {[%clk 0:02:58.7]} 2...
e6 {[%clk 0:02:56.9]} 3. g3 {[%clk 0:02:58.7]} 3... d5 {[%clk 0:02:53.8]} 4. Bg2
{[%clk 0:02:58.8]} 4... c6 {[%clk 0:02:52.6]} 5. Nf3 {[%clk 0:02:58.5]} 5...
Nbd7 {[%clk 0:02:44.6]} 6. O-O {[%clk 0:02:57.8]} 6... dxc4 {[%clk 0:02:45]} 7.
a4 {[%clk 0:02:56]} 7... Bd6 {[%clk 0:02:38.8]} 8. Na3 {[%clk 0:02:55.2]} 8...
Bxa3 {[%clk 0:02:28.8]} 9. Rxa3 {[%clk 0:02:56.1]} 9... O-O {[%clk 0:02:23.8]}
10. Qc2 {[%clk 0:02:54.1]} 10... b5 {[%clk 0:02:17.5]} 11. Rd1 {[%clk 0:02:20]}
11... b4 {[%clk 0:02:14.1]} 12. Ra1 {[%clk 0:02:18.9]} 12... Ba6 {[%clk
0:02:11.7]} 13. e4 {[%clk 0:02:16.2]} 13... Qb6 {[%clk 0:01:37.9]} 14. Be3
{[%clk 0:02:11.2]} 14... c5 {[%clk 0:01:29.9]} 15. Ne5 {[%clk 0:01:52.9]} 15...
Nxe5 {[%clk 0:01:14.5]} 16. dxe5 {[%clk 0:01:53.8]} 16... Ne8 {[%clk 0:01:11.6]}
17. Bf1 {[%clk 0:01:46.8]} 17... Bb7 {[%clk 0:00:32.1]} 18. Bxc4 {[%clk
0:01:44.2]} 18... Qc6 {[%clk 0:00:31.5]} 19. Bb5 {[%clk 0:01:38.8]} 19... b3
{[%clk 0:00:21.1]} 20. Qc4 {[%clk 0:01:35]} 20... Qxe4 {[%clk 0:00:15.1]} 21.
Qxe4 {[%clk 0:01:34.6]} 21... Bxe4 {[%clk 0:00:16]} 22. Bxc5 {[%clk 0:01:34.7]}
22... Nc7 {[%clk 0:00:16]} 23. Bxf8 {[%clk 0:01:34.1]} 23... Kxf8 {[%clk
0:00:16]} 24. Rd4 {[%clk 0:01:30.5]} 24... Bd5 {[%clk 0:00:14.2]} 25. Bc4 {[%clk
0:01:27.2]} 25... Rb8 {[%clk 0:00:10.6]} 26. Bxd5 {[%clk 0:01:24.2]} 26... Nxd5
{[%clk 0:00:11.5]} 27. Rc1 {[%clk 0:01:23.8]} 27... Ke7 {[%clk 0:00:09.7]} 28.
Kf1 {[%clk 0:01:23]} 28... Rb6 {[%clk 0:00:09]} 29. Ke2 {[%clk 0:01:22.4]} 29...
f6 {[%clk 0:00:09.2]} 30. exf6+ {[%clk 0:01:21.5]} 30... gxf6 {[%clk 0:00:08]}
31. Rc8 {[%clk 0:01:21.6]} 31... Kd6 {[%clk 0:00:07.9]} 32. Rh4 {[%clk
0:01:19.3]} 32... Ra6 {[%clk 0:00:06.1]} 33. Rb8 {[%clk 0:01:18]} 33... Rc6
{[%clk 0:00:05.6]} 34. Rxb3 {[%clk 0:01:17.1]} 34... Rc2+ {[%clk 0:00:05.5]} 35.
Kf1 {[%clk 0:01:17.3]} 35... Rc1+ {[%clk 0:00:04.3]} 36. Kg2 {[%clk 0:01:17.2]}
36... f5 {[%clk 0:00:04.2]} 37. Rxh7 {[%clk 0:01:16.9]} 37... f4 {[%clk
0:00:04.3]} 38. Rxa7 {[%clk 0:01:16]} 38... Rc2 {[%clk 0:00:03.1]} 39. a5 {[%clk
0:01:14.2]} 39... Ne3+ {[%clk 0:00:03]} 40. Kf3 {[%clk 0:01:14.5]} 40... Nd1
{[%clk 0:00:02.9]} 41. Rd3+ {[%clk 0:01:11.4]} 1-0

[Event "Early-Titled-Tuesday-Blitz-November-28-2023"]
[Site "Chess.com"]
[Date "2023.11.28"]
[Round "1"]
[White "chess_blitz00"]
[Black "jcibarra"]
[Result "0-1"]
[WhiteElo "2499"]
[BlackElo "2903"]
[TimeControl "180+1"]
[EndTime "8:06:30 PST"]
[Termination "jcibarra won by resignation"]

1. d4 {[%clk 0:03:00.9]} 1... Nf6 {[%clk 0:02:55.7]} 2. Nf3 {[%clk 0:02:58.6]}
2... g6 {[%clk 0:02:55.5]} 3. c4 {[%clk 0:02:57.8]} 3... d6 {[%clk 0:02:55.7]}
4. Nc3 {[%clk 0:02:58.3]} 4... Bf5 {[%clk 0:02:56.3]} 5. g3 {[%clk 0:02:52.7]}
5... Ne4 {[%clk 0:02:56.2]} 6. Bg2 {[%clk 0:02:48.3]} 6... Nxc3 {[%clk
0:02:55.6]} 7. bxc3 {[%clk 0:02:49.2]} 7... Be4 {[%clk 0:02:55.9]} 8. O-O {[%clk
0:02:47.8]} 8... Bg7 {[%clk 0:02:55.8]} 9. Qb3 {[%clk 0:02:41.8]} 9... O-O
{[%clk 0:02:54.9]} 10. Ba3 {[%clk 0:02:28.8]} 10... b6 {[%clk 0:02:54.4]} 11. c5
{[%clk 0:02:22.6]} 11... Nc6 {[%clk 0:02:54]} 12. Qa4 {[%clk 0:02:09]} 12... Qe8
{[%clk 0:02:49.2]} 13. Rad1 {[%clk 0:01:57.6]} 13... Na5 {[%clk 0:02:34]} 14.
Qxe8 {[%clk 0:01:54]} 14... Rfxe8 {[%clk 0:02:31.5]} 15. cxd6 {[%clk 0:01:49.2]}
15... cxd6 {[%clk 0:02:30.8]} 16. Nd2 {[%clk 0:01:41]} 16... Bxg2 {[%clk
0:02:24.4]} 17. Kxg2 {[%clk 0:01:41.9]} 17... Rac8 {[%clk 0:02:23.7]} 18. Bb2
{[%clk 0:01:12.2]} 18... d5 {[%clk 0:02:12.2]} 19. f3 {[%clk 0:00:49.3]} 19...
Bh6 {[%clk 0:02:09.1]} 20. f4 {[%clk 0:00:42.8]} 20... e6 {[%clk 0:02:08.2]} 21.
e4 {[%clk 0:00:40.3]} 21... dxe4 {[%clk 0:02:00.1]} 22. Nxe4 {[%clk 0:00:41.2]}
22... Red8 {[%clk 0:01:59.7]} 23. Kf3 {[%clk 0:00:36.2]} 23... Bg7 {[%clk
0:01:58.2]} 24. Ba1 {[%clk 0:00:25.1]} 24... Rd5 {[%clk 0:01:53]} 25. Ke3 {[%clk
0:00:21.3]} 25... Rc4 {[%clk 0:01:40.3]} 26. Kd3 {[%clk 0:00:20.4]} 26... Ra4
{[%clk 0:01:40.9]} 27. Rf2 {[%clk 0:00:19.5]} 27... h6 {[%clk 0:01:39.3]} 28.
Rb2 {[%clk 0:00:17.7]} 28... Bxd4 {[%clk 0:01:28.1]} 29. cxd4 {[%clk 0:00:14.3]}
29... Rdxd4+ {[%clk 0:01:05.3]} 30. Kc2 {[%clk 0:00:13]} 30... Rac4+ {[%clk
0:01:04.8]} 31. Nc3 {[%clk 0:00:10.4]} 31... Rxc3+ {[%clk 0:00:48.1]} 32. Kxc3
{[%clk 0:00:10.8]} 32... Rxd1 {[%clk 0:00:48.6]} 33. Kb4 {[%clk 0:00:07.5]}
33... Rxa1 {[%clk 0:00:46.9]} 0-1

[Event "Early-Titled-Tuesday-Blitz-November-28-2023"]
[Site "Chess.com"]
[Date "2023.11.28"]
[Round "1"]
[White "Cayse"]
[Black "andrzej"]
[Result "1-0"]
[WhiteElo "2854"]
[BlackElo "2471"]
[TimeControl "180+1"]
[EndTime "8:06:33 PST"]
[Termination "Cayse won on time"]

1. e4 {[%clk 0:03:00.9]} 1... e5 {[%clk 0:02:59]} 2. Nf3 {[%clk 0:03:00.5]} 2...
Nf6 {[%clk 0:02:59.7]} 3. Nc3 {[%clk 0:02:58.6]} 3... Bb4 {[%clk 0:02:59.4]} 4.
Nxe5 {[%clk 0:02:57.4]} 4... O-O {[%clk 0:02:59.6]} 5. Be2 {[%clk 0:02:57.2]}
5... Re8 {[%clk 0:02:58.8]} 6. Nd3 {[%clk 0:02:57.1]} 6... Bxc3 {[%clk
0:02:59.4]} 7. dxc3 {[%clk 0:02:58]} 7... Nxe4 {[%clk 0:02:59.9]} 8. O-O {[%clk
0:02:57.3]} 8... d6 {[%clk 0:03:00.5]} 9. Re1 {[%clk 0:02:54.1]} 9... Nd7 {[%clk
0:02:58.6]} 10. Bf1 {[%clk 0:02:47.2]} 10... b6 {[%clk 0:02:46.4]} 11. f3 {[%clk
0:02:39.2]} 11... Nec5 {[%clk 0:02:45]} 12. Nxc5 {[%clk 0:02:19.4]} 12... Nxc5
{[%clk 0:02:40.8]} 13. Bg5 {[%clk 0:02:18.6]} 13... f6 {[%clk 0:02:14.2]} 14.
Bh4 {[%clk 0:02:07.1]} 14... Bb7 {[%clk 0:02:06.1]} 15. Bb5 {[%clk 0:02:04]}
15... Rxe1+ {[%clk 0:01:34.8]} 16. Qxe1 {[%clk 0:02:04.9]} 16... a6 {[%clk
0:01:33.9]} 17. Bc4+ {[%clk 0:02:02.3]} 17... Kh8 {[%clk 0:01:29.5]} 18. Qe3
{[%clk 0:02:00.9]} 18... b5 {[%clk 0:01:16.4]} 19. Bf1 {[%clk 0:02:00.2]} 19...
Qe8 {[%clk 0:01:02.7]} 20. Re1 {[%clk 0:01:58.6]} 20... Qxe3+ {[%clk 0:01:02.2]}
21. Rxe3 {[%clk 0:01:59.5]} 21... Kg8 {[%clk 0:00:52.3]} 22. b4 {[%clk
0:01:56.3]} 22... Nd7 {[%clk 0:00:44.7]} 23. c4 {[%clk 0:01:56.1]} 23... Ne5
{[%clk 0:00:25.5]} 24. cxb5 {[%clk 0:01:53.7]} 24... axb5 {[%clk 0:00:26.4]} 25.
Bxb5 {[%clk 0:01:53.7]} 25... Kf8 {[%clk 0:00:21.4]} 26. a3 {[%clk 0:01:50.3]}
26... Ba6 {[%clk 0:00:16.4]} 27. Bxa6 {[%clk 0:01:44.5]} 27... Rxa6 {[%clk
0:00:17.3]} 28. Rc3 {[%clk 0:01:44.7]} 28... c6 {[%clk 0:00:14.8]} 29. f4 {[%clk
0:01:38.6]} 29... Ng6 {[%clk 0:00:11.9]} 30. Bg3 {[%clk 0:01:35.2]} 30... Ne7
{[%clk 0:00:12.4]} 31. Rd3 {[%clk 0:01:35.1]} 31... d5 {[%clk 0:00:11.3]} 32.
Bf2 {[%clk 0:01:35]} 32... Nf5 {[%clk 0:00:11.1]} 33. Bc5+ {[%clk 0:01:34]}
33... Ke8 {[%clk 0:00:11.2]} 34. Kf2 {[%clk 0:01:34]} 34... h5 {[%clk 0:00:11]}
35. Ke2 {[%clk 0:01:31.4]} 35... Kd7 {[%clk 0:00:11]} 36. c4 {[%clk 0:01:29.4]}
36... Ke6 {[%clk 0:00:10]} 37. cxd5+ {[%clk 0:01:29.1]} 37... cxd5 {[%clk
0:00:10.3]} 38. Rb3 {[%clk 0:01:22.6]} 38... h4 {[%clk 0:00:09.9]} 39. b5 {[%clk
0:01:22.3]} 39... Ra4 {[%clk 0:00:10]} 40. b6 {[%clk 0:01:20.8]} 40... Re4+
{[%clk 0:00:03.6]} 41. Kd2 {[%clk 0:01:18]} 41... Kd7 {[%clk 0:00:01.8]} 42. b7
{[%clk 0:01:17.6]} 1-0